Cogmind - Beta 15 @@@ ROGUE MODE // 2025.06.08 @ 02:17:43 Player: CL-1C0 Result: Self-destructed Performance ------------- Evolutions (2) 1000 Regions Visited (6) 1200 Robots Destroyed (0) 0 Value Destroyed (10) 10 Prototype IDs (23) 460 Alien Tech Used (0) 0 Bonus (570) 570 TOTAL SCORE: 3240 Bonus ------- Pacifist 270 Aligned with FarCom 300 Cogmind --------- Core Integrity 350/550 Matter 280/300 Energy 100/100 System Corruption 0% Temperature Cool (0) Movement Flying (40) Location -8/Storage Parts ------- > --- POWER (1) -------- (None) > --- PROPULSION (4) --- Flight Unit > --- UTILITY (4) ------ Signal Interpreter Targeting Computer Advanced Targeting Computer > --- WEAPON (2) ------- Axe > --- INVENTORY (5) ---- Fission Core YOLO Cannon Rocket Launcher Peak State ------------ > --- POWER ------------ (None) > --- PROPULSION ------- Flight Unit VTOL Module > --- UTILITY ---------- Signal Interpreter Targeting Computer Advanced Targeting Computer > --- WEAPON ----------- Mining Claw Axe > --- INVENTORY -------- Fission Core YOLO Cannon Rocket Launcher Plasma Cutter [Rating: 14] Favorites ----------- Power Ion Engine Engine Ion Engine Propulsion Aluminum Leg Leg Aluminum Leg Flight Unit VTOL Module Utility Targeting Computer Processor Targeting Computer Weapon Mining Claw Special Weapon Plasma Cutter Slashing Weapon Mining Claw Build | -11 -10 -10 -10 -9 -8 -8 ------- Run | Yrd Mat Min Exi Min Mat Sto Slots Evolved 4 | . . . . . 4 . Power . | . . . . . . . Propulsion 2 | . . . . . 2 . Utility 2 | . . . . . 2 . Weapon . | . . . . . . . Parts Attached 10 | 1 1 1 . 1 1 5 Power 1 | 1 . . . . . . Engine 1 | 1 . . . . . . Core . | . . . . . . . Reactor . | . . . . . . . Propulsion 3 | . . 1 . . . 2 Treads . | . . . . . . . Leg 1 | . . 1 . . . . Wheel . | . . . . . . . Hover . | . . . . . . . Flight 2 | . . . . . . 2 Utility 3 | . 1 . . 1 1 . Device . | . . . . . . . Storage . | . . . . . . . Processor 3 | . 1 . . 1 1 . Hackware . | . . . . . . . Protection . | . . . . . . . Artifact . | . . . . . . . Weapon 3 | . . . . . . 3 Energy Gun . | . . . . . . . Energy Cannon . | . . . . . . . Ballistic Gun . | . . . . . . . Ballistic Cannon . | . . . . . . . Launcher . | . . . . . . . Special Weapon 1 | . . . . . . 1 Impact Weapon . | . . . . . . . Slashing Weapon 2 | . . . . . . 2 Piercing Weapon . | . . . . . . . Special Melee Weapon . | . . . . . . . Unidentified Prototypes . | . . . . . . . Parts Lost 2 | . . . . . . 2 Power . | . . . . . . . Propulsion 1 | . . . . . . 1 Utility . | . . . . . . . Weapon 1 | . . . . . . 1 Highest Loss Streak 2 | . . . . . . 2 To Critical Strikes . | . . . . . . . Average Backups 2 | 4 . . 3 4 4 3 Power 1 | . . . 2 1 1 1 Propulsion . | 3 . . . . . . Utility . | . . . . . . . Weapon 1 | 1 . . 1 2 2 2 Tool/Special . | . . . . . . . Unused Backups 5 | . . . 1 1 . 3 Power 3 | . . . 1 1 . 1 Propulsion . | . . . . . . . Utility . | . . . . . . . Weapon 2 | . . . . . . 2 Tool/Special . | . . . . . . . Average Slot Usage (%) 29 | . 7 21 28 32 33 43 Leg 8 | . . 7 14 14 9 . Flight 2 | . . . . . . 9 Processor 17 | . 7 14 14 18 24 27 Slashing Weapon 1 | . . . . . . 5 Peak Build Rating 14 | 1 1 2 5 5 8 14 Average Rating 5 | . . 1 3 4 7 10 On Entrance 3 | 6 . 1 2 5 5 8 Naked Turns 12 | . 12 . . . . . Heaviest Build 4 | . . . . . . 4 Greatest Support 10 | 3 3 10 3 3 10 8 Greatest Overweight (x) . | . . . . . . . Average Overweight (x) . | . . . . . . . Largest Inventory Capacity 5 | 5 5 5 5 5 5 5 Average Capacity 5 | 5 5 5 5 5 5 5 Most Carried 5 | 4 . 1 5 5 5 5 Average Carried 3 | 2 . . 4 4 5 4 Final Capacity 5 | 5 5 5 5 5 5 5 Final Carried 5 | . . 1 5 5 5 4 Class Distribution -------------------- 100% | Mutant Dominant Class ---------------- Mutant | -10/Mines Mutant | -10/Exiles Mutant | -9/Mines Mutant | -8/Materials Mutant | -8/Storage Resources | -11 -10 -10 -10 -9 -8 -8 ----------- Run | Yrd Mat Min Exi Min Mat Sto Matter Collected 252 | 200 . 20 . . . 32 Remotely . | . . . . . . . Salvage Created . | . . . . . . . Parts . | . . . . . . . Haulers Intercepted . | . . . . . . . Recyclers Shooed . | . . . . . . . Parts Field Recycled . | . . . . . . . Retrieved Matter . | . . . . . . . Parts Self-Destructed . | . . . . . . . Prevented . | . . . . . . . Kills | -11 -10 -10 -10 -9 -8 -8 ------- Run | Yrd Mat Min Exi Min Mat Sto Combat Hostiles Destroyed . | . . . . . . . Classes Destroyed . | . . . . . . . Best Kill Streak . | . . . . . . . Combat Bots Only . | . . . . . . . Max Kills in Single Turn . | . . . . . . . Gunslinging . | . . . . . . . Exploded . | . . . . . . . Melee . | . . . . . . . Uniques/NPCs Destroyed . | . . . . . . . Combat | -11 -10 -10 -10 -9 -8 -8 -------- Run | Yrd Mat Min Exi Min Mat Sto Hostile Shots Fired 72 | . . 17 . . 8 47 Missed 32 | . . 10 . . 4 18 Hits 40 | . . 7 . . 4 29 Projectile 40 | . . 7 . . 4 29 Damage Taken 389 | . . 74 . . 63 252 Core 254 | . . 54 . . 18 182 Absorbed by Shields . | . . . . . . . Core Remaining (%) 89 | 100 . . . 78 . . Volleys Fired . | . . . . . . . Largest . | . . . . . . . Hottest . | . . . . . . . Shots Fired . | . . . . . . . Gun . | . . . . . . . Cannon . | . . . . . . . Launcher . | . . . . . . . Special . | . . . . . . . Kinetic . | . . . . . . . Thermal . | . . . . . . . Explosive . | . . . . . . . Electromagnetic . | . . . . . . . Robot Hit Streak . | . . . . . . . Robot Miss Streak . | . . . . . . . Penetration Max . | . . . . . . . Secondary Targets . | . . . . . . . Shots Hit Robots 1 | . . . . . . 1 Core Hits . | . . . . . . . Critical Kills . | . . . . . . . Critical Parts Destroyed . | . . . . . . . Critical Strikes . | . . . . . . . Melee Attacks 6 | . . . . . . 6 Impact . | . . . . . . . Slashing 6 | . . . . . . 6 Piercing . | . . . . . . . Sneak Attacks . | . . . . . . . Combat Hostiles . | . . . . . . . Follow-up Attacks 1 | . . . . . . 1 Damage Inflicted 38 | . . 11 . 1 1 25 Guns . | . . . . . . . Cannons . | . . . . . . . Explosions . | . . . . . . . Melee 25 | . . . . . . 25 Ramming 13 | . . 11 . 1 1 . Kinetic . | . . . . . . . Thermal . | . . . . . . . Explosive . | . . . . . . . Electromagnetic . | . . . . . . . Impact . | . . . . . . . Slashing 25 | . . . . . . 25 Piercing . | . . . . . . . Highest Corruption . | . . . . . . . Average Corruption . | . . . . . . . Corruption Purged . | . . . . . . . Corruption Blocked . | . . . . . . . Overload Shots . | . . . . . . . Overflow Damage . | . . . . . . . Projectiles . | . . . . . . . Explosions . | . . . . . . . Melee . | . . . . . . . Knockbacks . | . . . . . . . Impact . | . . . . . . . Kinetic . | . . . . . . . Secondary . | . . . . . . . Self-Inflicted Damage . | . . . . . . . Shots . | . . . . . . . Rammed . | . . . . . . . Targets Rammed 7 | . . 4 . 2 1 . Kicked 7 | . . 4 . 2 1 . Crushed . | . . . . . . . Highest Temperature . | . . . . . . . Average Temperature . | . . . . . . . Received Heat Transfer 39 | . . 21 . . 18 . Siege Activations . | . . . . . . . Martial Activations . | . . . . . . . Shielding Activations . | . . . . . . . Robots Disrupted . | . . . . . . . Combat Hostiles . | . . . . . . . Robots Corrupted . | . . . . . . . Combat Hostiles . | . . . . . . . Parts Fried . | . . . . . . . Impact Corruptions . | . . . . . . . Robots Melted . | . . . . . . . Combat Hostiles . | . . . . . . . Parts Melted . | . . . . . . . Heat Transferred . | . . . . . . . Parts Sabotaged . | . . . . . . . Parts Stolen . | . . . . . . . Parts Stripped . | . . . . . . . Power Chain Reactions . | . . . . . . . Alert | -11 -10 -10 -10 -9 -8 -8 ------- Run | Yrd Mat Min Exi Min Mat Sto Maximum Alert Level . | . . . . . . . Low Security (%) 100 | 100 100 100 . 100 100 100 Level 1 . | . . . . . . . Level 2 . | . . . . . . . Level 3 . | . . . . . . . Level 4 . | . . . . . . . Level 5 . | . . . . . . . High Security . | . . . . . . . Max Security . | . . . . . . . Peak Influence 30 | . 15 30 . . . 20 Initial 5 | . . 5 . . . . Average 4 | . 5 5 . . . 7 Influence Increases 92 | . 15 30 . . . 47 Successful Hack 2 | . . . . . . 2 Disable Machine 15 | . . . . . . 15 Partial Spotted 45 | . 15 . . . . 30 Lose Combat Pursuer 30 | . . 30 . . . . Influence Decreases 92 | . . 25 20 . . 47 Entered New Map 30 | . . 10 20 . . . Time Decay 52 | . . 15 . . . 37 Lost Part 10 | . . . . . . 10 Squads Dispatched 3 | . 1 . . . . 2 Investigation 1 | . . . . . . 1 Extermination . | . . . . . . . Reinforcement 2 | . 1 . . . . 1 Assault . | . . . . . . . Garrison . | . . . . . . . Intercept . | . . . . . . . Searches Triggered . | . . . . . . . Construction Impeded . | . . . . . . . Haulers Reinforced . | . . . . . . . Active Scanning Responses . | . . . . . . . Cargo Convoy Interrupts . | . . . . . . . Stealth | -11 -10 -10 -10 -9 -8 -8 --------- Run | Yrd Mat Min Exi Min Mat Sto Distress Signals 2 | . . 2 . . . . Communications Jammed . | . . . . . . . Distress Signals . | . . . . . . . Times Spotted 14 | . 1 6 . . 1 6 Peak Tracking Total 5 | . 1 4 . . 1 5 Tactical Retreats 1 | . . 1 . . . . Traps | -11 -10 -10 -10 -9 -8 -8 ------- Run | Yrd Mat Min Exi Min Mat Sto Traps Triggered . | . . . . . . . Indirectly . | . . . . . . . Trap Hack Attempts . | . . . . . . . Triggered . | . . . . . . . Disarmed . | . . . . . . . Reprogrammed . | . . . . . . . Reused . | . . . . . . . Traps Extracted . | . . . . . . . Installed . | . . . . . . . Triggered . | . . . . . . . Machines | -11 -10 -10 -10 -9 -8 -8 ---------- Run | Yrd Mat Min Exi Min Mat Sto Machines Disabled 1 | . . . . . . 1 Max in Single Turn 1 | . . . . . . 1 Machines Repaired . | . . . . . . . Machines Dismantled . | . . . . . . . Machines Sabotaged . | . . . . . . . Overloaded Fab Kills . | . . . . . . . Hacking | -11 -10 -10 -10 -9 -8 -8 --------- Run | Yrd Mat Min Exi Min Mat Sto Machines Accessed 3 | . . . 1 . . 2 Terminals 2 | . . . . . . 2 Fabricators . | . . . . . . . Repair Stations . | . . . . . . . Recycling Units . | . . . . . . . Scanalyzers . | . . . . . . . Garrison Access . | . . . . . . . Total Hacks 5 | . . . 1 . . 4 Successful 3 | . . . 1 . . 2 Failed 2 | . . . . . . 2 Catastrophic . | . . . . . . . Database Lockouts . | . . . . . . . Manual 5 | . . . 1 . . 4 Terminals 4 | . . . . . . 4 Fabricators . | . . . . . . . Repair Stations . | . . . . . . . Recycling Units . | . . . . . . . Scanalyzers . | . . . . . . . Garrison Access . | . . . . . . . Terminal Hacks 3 | . . . 1 . . 2 Open Door 2 | . . . . . . 2 Proto ID Catalog 1 | . . . 1 . . . Fabricator Hacks . | . . . . . . . Repair Station Hacks . | . . . . . . . Recycling Unit Hacks . | . . . . . . . Scanalyzer . | . . . . . . . Garrison Access Hacks . | . . . . . . . Unauthorized Hacks . | . . . . . . . Terminals . | . . . . . . . Fabricators . | . . . . . . . Repair Stations . | . . . . . . . Recycling Units . | . . . . . . . Scanalyzers . | . . . . . . . Garrison Access . | . . . . . . . Data Cores Recovered . | . . . . . . . Used . | . . . . . . . Hacking Detections 2 | . . . . . . 2 Full Trace Events 2 | . . . . . . 2 Feedback Events . | . . . . . . . Feedback Blocked . | . . . . . . . Robot Schematics Acquired . | . . . . . . . Robots Built . | . . . . . . . Authchips . | . . . . . . . Time . | . . . . . . . Total Robot Build Rating . | . . . . . . . Part Schematics Acquired . | . . . . . . . Parts Built . | . . . . . . . Authchips . | . . . . . . . Time . | . . . . . . . Total Part Build Rating . | . . . . . . . Parts Repaired . | . . . . . . . Time . | . . . . . . . Parts Recycled . | . . . . . . . Recycled Matter . | . . . . . . . Retrieved Matter . | . . . . . . . Retrieved Components . | . . . . . . . Parts Scanalyzed . | . . . . . . . Part Schematics Acquired . | . . . . . . . Parts Damaged . | . . . . . . . Bothacking | -11 -10 -10 -10 -9 -8 -8 ------------ Run | Yrd Mat Min Exi Min Mat Sto Used RIF Installer . | . . . . . . . Robots Hacked . | . . . . . . . Non-combat . | . . . . . . . Combat . | . . . . . . . Robot Hacks Applied . | . . . . . . . Relay Couplers Released . | . . . . . . . Fabnet Peak Effective % . | . . . . . . . Robots Rewired . | . . . . . . . Allies Hacked . | . . . . . . . Hacks Repelled . | . . . . . . . Allies | -11 -10 -10 -10 -9 -8 -8 -------- Run | Yrd Mat Min Exi Min Mat Sto Total Allies . | . . . . . . . Largest Group . | . . . . . . . Highest-Rated Group . | . . . . . . . Highest-Rated Ally . | . . . . . . . Total Orders . | . . . . . . . Ally Attacks . | . . . . . . . Total Damage . | . . . . . . . Kills . | . . . . . . . Allies Corrupted . | . . . . . . . Allies Melted . | . . . . . . . Intel | -11 -10 -10 -10 -9 -8 -8 ------- Run | Yrd Mat Min Exi Min Mat Sto Active Infowar (turns) . | . . . . . . . Robot Analysis Total . | . . . . . . . Derelict Logs Recovered 4 | . . 1 . 3 . . Drone Launches . | . . . . . . . Drone Recoveries . | . . . . . . . Exploration | -11 -10 -10 -10 -9 -8 -8 ------------- Run | Yrd Mat Min Exi Min Mat Sto Turns Passed 434 | 4 30 83 107 80 24 106 Spaces Moved 733 | 1 57 150 205 145 34 141 Core 595 | 1 57 149 205 145 33 5 Treads . | . . . . . . . Legs 2 | . . 1 . . 1 . Wheels . | . . . . . . . Hover . | . . . . . . . Flight 136 | . . . . . . 136 Fastest Speed 34 | 50 50 50 50 50 50 34 Average Speed 47 | 50 50 50 50 50 52 36 Slowest Speed 120 | 50 50 120 50 50 120 50 Overloaded Moves . | . . . . . . . Propulsion Burnouts . | . . . . . . . Robots Hopped 2 | . . . . . . 2 Potential Cave-ins . | . . . . . . . Cave-ins Triggered . | . . . . . . . Exploration Rate (%) 28 | 1 21 29 60 48 8 30 Regions Visited 6 Branch Regions 4 Pre-discovered Areas . | . . . . . . . Known Exits Taken 2 | . . . . 1 1 . Unknown Exits Taken 4 | 1 1 1 1 . . . Scrap Searched 3 | . . . . 3 . . Spaces Dug . | . . . . . . . Terrain Destroyed . | . . . . . . . Melee . | . . . . . . . Projectile . | . . . . . . . AOE . | . . . . . . . Terrain Rammed . | . . . . . . . Walls Destroyed . | . . . . . . . Machines Disabled . | . . . . . . . Actions | -11 -10 -10 -10 -9 -8 -8 --------- Run | Yrd Mat Min Exi Min Mat Sto Total 793 | 6 57 155 209 151 39 176 Wait 28 | . . . . 2 4 22 Move 723 | . 56 149 204 144 33 137 Hop 2 | . . . . . . 2 Pick Up 6 | . . 1 4 1 . . Fast Attach 8 | . 1 1 . 1 1 4 Attach 2 | 1 . . . . . 1 Detach . | . . . . . . . Swap . | . . . . . . . Drop 9 | 5 . . 1 1 . 2 Fire . | . . . . . . . Melee 5 | . . . . . . 5 Ram . | . . . . . . . Kick 7 | . . 4 . 2 1 . Crush . | . . . . . . . Escape Stasis . | . . . . . . . Rewire . | . . . . . . . Trap . | . . . . . . . Miscellaneous 3 | . . . . . . 3 Route ------- -11/Scrapyard -10/Materials -10/Mines (discovered 3 exits: [*Mat x2] / *Exi) -10/Exiles -9/Mines -8/Materials (discovered 3 exits: Fac x2 / *Sto) -8/Storage History --------- Turn | Location | Event 1 | -11/Scrapyard | Released all parts (6) 5 | -11/Scrapyard | Discovered new exit (range 0) 5 | -11/Scrapyard | Entered Materials 31 | -10/Materials | Discovered new exit (range 9) 35 | -10/Materials | Entered Mines 41 | -10/Mines | Discovered new exit (range 16) 48 | -10/Mines | Received a Rocket Launcher from a helpful Derelict 49 | -10/Mines | Assembled infested the area 54 | -10/Mines | Assisted by a Guerilla fighting off Assembled 75 | -10/Mines | Discovered new exit (range 7) 108 | -10/Mines | Learned location of 1 exit from Materials 116 | -10/Mines | Deemed a non-threat by the Exiles lab entrance 116 | -10/Mines | Discovered new exit (range 5) 118 | -10/Mines | Entered Exiles 135 | -10/Exiles | Met 8R-AWN 143 | -10/Exiles | Met EX-HEX 156 | -10/Exiles | Met EX-BIN 162 | -10/Exiles | Aligned with FarCom system 163 | -10/Exiles | Given EX-Vault access code 174 | -10/Exiles | Opened EX-Vault 179 | -10/Exiles | Found YOLO Cannon 189 | -10/Exiles | Warned to stay clear of 0b10 Research branches 204 | -10/Exiles | Met EX-DEC 221 | -10/Exiles | Discovered new exit (range 10) 225 | -10/Exiles | Left Exiles lab with YOLO Cannon 225 | -10/Exiles | Entered Mines 239 | -9/Mines | Learned location of 1 exit from Materials 258 | -9/Mines | Learned Materials trap positions 268 | -9/Mines | Learned location of 1 exit from Materials 300 | -9/Mines | Build established: Mutant 301 | -9/Mines | Discovered new exit (range 7) 304 | -9/Mines | Identified exit to Materials 305 | -9/Mines | Entered Materials 305 | -8/Materials | Evolved 4 slots: Propulsion x2, Utility x2 306 | -8/Materials | Identified exit to Storage 306 | -8/Materials | Identified exit to Factory 307 | -8/Materials | Loaded intel: 12 trap records 329 | -8/Materials | Entered Storage 435 | -8/Storage | Self-destructed Last Messages --------------- Sealed Heavy Doors opened. 00377_ Acquired Mining Claw. 00389_ O-24 Administrator: "IFF HANDSHAKE FAILED. SECURING TERMINAL." 00391_ Storage Shell breached. 00393_ ALERT: Hostiles spotted, dispatching reinforcements to Terminal S002. 00394_ Acquired 32 matter. 00402_ Acquired Flight Unit. 00404_ Acquired Axe. 00406_ Mining Claw follow-up attack on S-10 Pest. 00412_ VTOL Module destroyed. 00413_ Dropped Mining Claw. 00419_ Connecting with Door Terminal... >>Open(Door) Sealed Heavy Doors opened. 00423_ Connecting with Door Terminal... 00423_ ALERT: Suspicious activity at Terminal S001. Dispatching Investigation squad. 00425_ Dismantling Sealed Blast Doors with Plasma Cutter. 00433_ Plasma Cutter destroyed. Map ----- +----------------------------------------------------+ | ?# #????????# # #????????? | | ?# #????????# + #????????? | | ?# #????????# [ # #????????? | | ?# #????????# # #????????? | | ?# #????????##+#####+#### #####????? | | ?# #???????????????# #??# #??? | | ?# ########????????# #####+######????? | | ?# / #?##### # #??????? | | ?# ## """ # #"""# # #??????? | | ## #??"??????# #"Y"# # " " #??????? | | #?????????+ / " "%" +??Y???? | | ## #?????????# # "/""%"?#??????? | | ?# #?????????# ]] # "!""]"????????? | | ?# #?????????# ]] # " ""???????Y? | | ?# #?????????# ] # """ #??????? | | ?# #?????????# # ? #??????? | | ?#+########### ##########??????? | | ?# ##"" """ #???????????????? | | ?# !!! ##"T """ ######??????????? | | ## !!! Y#"" """ # **#??????????? | | # !! #### + **#??????????? | | + #??# # **#??????????? | | # """ ####+#### g#T####??????????? | | # """ # # #####???????????? | | # """ #""" # g###T#"??????????? | | + #""" + s @"??????????? | | ###########""" # ss "??????????? | | ??###?????#""" ########"??????????? | | !!!!#?????#""" ????????????????????? | | #?????# ????????????????????? | | !!!!#?????######?????????????????????? | | ?####????????????????????????????????? | | | | | | | | | | | | | | | | | | | | | | | | | | | | | | | | | | | | | +----------------------------------------------------+ Best States ------------- Heat Dissipation 31 Energy Generation 5 Energy Capacity 100 Matter Stores 300 Matter Capacity 300 Sight Range 16 Terrain Scan Density 10 Evasion (%) 63 Targeting Accuracy 13 Item Schematics ----------------- None Robot Schematics ------------------ None Fabricated ------------ Nothing Repaired ---------- Nothing Alien Tech Used ----------------- None Achievements -------------- None Challenges ------------ None Game ------ Seed TerrainDrainedMount Manual? 0 Play Time 00:09:22 Cumulative 526.9 hours Start 2025.06.08 @ 02:10:40 End 2025.06.08 @ 02:17:43 Sessions 1 Manual Loads 0 Difficulty Rogue Special Mode None Game No. 589 Rogue 589 Adventurer 0 Explorer 0 Win Type - Total 16 Types 10/0/5/1/0/0/0/0/0/0 Lore% 83 Gallery% 82 Achievement% 82 Wizard Run 0 Options --------- Layout 0 ASCII 0 Keyboard 0 Movement Numpad Keybinds 0 Fullscreen 1 Font 18/SmallcapsGlow Map View 76x50 Zoom Use 0% Tactical HUD 1 Map Filters NONE Filters NONE Steam 1 RUN: 183f8056-d58a-40a9-8606-0da92035b292